[Event "NOR-ch Various 2019"]
[Site "Larvik"]
[Date "2019.07.13"]
[Round "9.4"]
[White "Wessel-Berg, Dag"]
[Black "Teigen, Tore"]
[Result "1-0"]
[ECO "D00"]
[WhiteElo "1486"]
[BlackElo "1551"]
[Annotator "NA"]
[PlyCount "51"]
[EventDate "2019.07.06"]
[EventType "swiss"]
[EventCountry "NOR"]
[SourceTitle "playchess.com"]
[Source "ChessBase"]
[SourceQuality "1"]
[TimeControl "40/5400+30:1800+30"]

1. d4 {[%emt 0:00:00]} d5 {[%emt 0:00:00]} 2. Bf4 {[%emt 0:00:00]} Nf6 {[%emt 0:00:17]} 3. e3 {[%emt 0:00:14]} e6 {[%emt 0:01:46]} 4. Nd2 {[%emt 0:00:26]} c6 {[%emt 0:07:32]} 5. Ngf3 {[%emt 0:00:28]} h6 {[%emt 0:02:16]} 6. Bd3 {[%emt 0:12:33]} Bd6 {[%emt 0:00:55]} 7. Bg3 {[%emt 0:00:34]} Nbd7 {[%emt 0:01:31]} 8. Bxd6 {[%emt 0:00:50]} Nb6 {[%emt 0:00:47]} 9. Bg3 {[%emt 0:03:13]} Nbd7 {[%emt 0:00:23]} 10. Ne5 {[%emt 0:00:44]} c5 {[%emt 0:01:15]} 11. c3 {[%emt 0:00:19]} a6 {[%emt 0:01:17]} 12. Qf3 {[%emt 0:02:07]} Qb6 {[%emt 0:01:31]} 13. Rb1 {[%emt 0:00:36]} Qa5 {[%emt 0:01:23]} 14. a3 {[%emt 0:00:33]} c4 {[%emt 0:02:22]} 15. Bc2 {[%emt 0:00:13]} O-O {[%emt 0:02:04]} 16. Bf4 {[%emt 0:02:36]} Qd8 {[%emt 0:01:00]} 17. g4 {[%emt 0:00:54]} g5 {[%emt 0:03:43]} 18. Bg3 {[%emt 0:05:40]} Kg7 {[%emt 0:00:14]} 19. h4 {[%emt 0:01:06]} Rh8 {[%emt 0:00:26]} 20. hxg5 {[%emt 0:00:38]} hxg5 {[%emt 0:00:14]} 21. Rxh8 {[%emt 0:00:18]} Qxh8 {[%emt 0:02:53]} 22. Ke2 {[%emt 0:00:33]} Kf8 {[%emt 0:01:22]} 23. Rh1 {[%emt 0:01:15]} Qg7 {[%emt 0:00:27]} 24. Nxd7+ {[%emt 0:01:44]} Bxd7 {[%emt 0:00:27]} 25. Be5 {[%emt 0:00:16]} Ke7 {[%emt 0:00:25]} 26. Rh7 {[%emt 0:00:56]} 1-0

[Event "NOR-ch Various 2019"]
[Site "Larvik"]
[Date "2019.07.13"]
[Round "9.5"]
[White "Strand, Andreas"]
[Black "Sorensen, Simen"]
[Result "0-1"]
[ECO "B21"]
[WhiteElo "1884"]
[BlackElo "1979"]
[Annotator "NA"]
[PlyCount "104"]
[EventDate "2019.07.06"]
[EventType "swiss"]
[EventCountry "NOR"]
[SourceTitle "playchess.com"]
[Source "ChessBase"]
[SourceQuality "1"]
[TimeControl "40/5400+30:1800+30"]

1. e4 {[%emt 0:00:00]} c5 {[%emt 0:00:17]} 2. f4 {[%emt 0:00:29]} e6 {[%emt 0:00:08]} 3. Nf3 {[%emt 0:03:08]} d5 {[%emt 0:00:43]} 4. Bb5+ {[%emt 0:02:38]} Bd7 {[%emt 0:03:27]} 5. Bxd7+ {[%emt 0:02:13]} Nxd7 {[%emt 0:00:42]} 6. Nc3 {[%emt 0:02:41]} dxe4 {[%emt 0:01:55]} 7. Nxe4 {[%emt 0:00:15]} Ngf6 {[%emt 0:00:20]} 8. Qe2 {[%emt 0:01:40]} Be7 {[%emt 0:04:22]} 9. b3 {[%emt 0:02:09]} O-O {[%emt 0:03:58]} 10. Bb2 {[%emt 0:02:19]} Qc7 {[%emt 0:07:22]} 11. Ne5 {[%emt 0:04:51]} Nxe4 {[%emt 0:03:43]} 12. Qxe4 {[%emt 0:01:14]} Nf6 {[%emt 0:00:43]} 13. Qf3 {[%emt 0:03:16]} Rfd8 {[%emt 0:13:28]} 14. g4 {[%emt 0:04:49]} Nd5 {[%emt 0:04:50]} 15. g5 {[%emt 0:04:39]} f6 {[%emt 0:07:36]} 16. gxf6 {[%emt 0:01:58]} Bxf6 {[%emt 0:00:06]} 17. O-O-O {[%emt 0:03:25]} b5 {[%emt 0:00:23]} 18. Kb1 {[%emt 0:08:46]} c4 {[%emt 0:02:25]} 19. Rhg1 {[%emt 0:05:01]} a5 {[%emt 0:03:39]} 20. Ng4 {[%emt 0:07:59]} Bxb2 {[%emt 0:01:34]} 21. Kxb2 {[%emt 0:00:26]} Rac8 {[%emt 0:04:56]} 22. Qe4 {[%emt 0:07:42]} Kh8 {[%emt 0:02:11]} 23. Rg3 {[%emt 0:05:39]} Qxf4 {[%emt 0:10:01]} 24. Qxe6 {[%emt 0:02:22]} Qd4+ {[%emt 0:04:23]} 25. c3 {[%emt 0:04:11]} Nxc3 {[%emt 0:00:22]} 26. Rxc3 {[%emt 0:04:17]} Re8 {[%emt 0:04:09]} 27. Qf5 {[%emt 0:05:16]} b4 {[%emt 0:00:19]} 28. Rdc1 {[%emt 0:01:57]} bxc3+ {[%emt 0:00:39]} 29. dxc3 {[%emt 0:00:10]} Qc5 {[%emt 0:01:33]} 30. Qxc5 {[%emt 0:03:05]} Rxc5 {[%emt 0:00:04]} 31. Ka3 {[%emt 0:01:20]} Rg5 {[%emt 0:00:58]} 32. h3 {[%emt 0:00:46]} Re2 {[%emt 0:00:24]} 33. Rf1 {[%emt 0:01:25]} h5 {[%emt 0:00:17]} 34. Rf2 {[%emt 0:00:58]} Re4 {[%emt 0:02:30]} 35. Nh2 {[%emt 0:00:10]} Re3 {[%emt 0:00:19]} 36. Rf8+ {[%emt 0:00:33]} Kh7 {[%emt 0:00:12]} 37. Nf3 {[%emt 0:00:40]} Rg3 {[%emt 0:00:28]} 38. Nd4 {[%emt 0:00:27]} cxb3 {[%emt 0:01:20]} 39. axb3 {[%emt 0:00:13]} Rxc3 {[%emt 0:00:12]} 40. Ka4 {[%emt 0:01:05]} Rxh3 {[%emt 0:00:14]} 41. Ne6 {[%emt 0:06:44]} Rxb3 {[%emt 0:01:04]} 42. Ng5+ {[%emt 0:00:42]} Kg6 {[%emt 0:00:07]} 43. Nxh3 {[%emt 0:00:15]} Rxh3 {[%emt 0:00:02]} 44. Kxa5 {[%emt 0:00:10]} Rb3 {[%emt 0:00:09]} 45. Ka4 {[%emt 0:01:24]} Rb7 {[%emt 0:00:22]} 46. Rf1 {[%emt 0:00:12]} h4 {[%emt 0:00:07]} 47. Ka5 {[%emt 0:00:23]} Kh5 {[%emt 0:00:10]} 48. Ka6 {[%emt 0:01:02]} Rb2 {[%emt 0:00:06]} 49. Rf3 {[%emt 0:00:44]} g5 {[%emt 0:00:10]} 50. Rc3 {[%emt 0:00:25]} g4 {[%emt 0:00:46]} 51. Rc5+ {[%emt 0:00:17]} Kg6 {[%emt 0:00:01]} 52. Ka5 {[%emt 0:00:49]} g3 {[%emt 0:00:09]} 0-1

[Event "NOR-ch Various 2019"]
[Site "Larvik"]
[Date "2019.07.13"]
[Round "9.6"]
[White "Kvendseth, Cornelius"]
[Black "Kyrkjebo, Hanna B."]
[Result "0-1"]
[ECO "E06"]
[WhiteElo "1964"]
[BlackElo "1915"]
[Annotator "NA"]
[PlyCount "90"]
[EventDate "2019.07.06"]
[EventType "swiss"]
[EventCountry "NOR"]
[SourceTitle "playchess.com"]
[Source "ChessBase"]
[SourceQuality "1"]
[TimeControl "40/5400+30:1800+30"]

1. Nf3 {[%emt 0:00:00]} d5 {[%emt 0:00:18]} 2. g3 {[%emt 0:00:41]} Bg4 {[%emt 0:00:35]} 3. Bg2 {[%emt 0:00:58]} c6 {[%emt 0:01:41]} 4. d4 {[%emt 0:03:00]} Nf6 {[%emt 0:01:19]} 5. O-O {[%emt 0:02:32]} e6 {[%emt 0:01:04]} 6. c4 {[%emt 0:02:51]} Be7 {[%emt 0:02:57]} 7. Nc3 {[%emt 0:05:18]} O-O {[%emt 0:02:00]} 8. cxd5 {[%emt 0:04:30]} exd5 {[%emt 0:00:49]} 9. Qc2 {[%emt 0:00:27]} Nbd7 {[%emt 0:05:01]} 10. Re1 {[%emt 0:03:28]} Re8 {[%emt 0:03:19]} 11. Bd2 {[%emt 0:03:40]} Bd6 {[%emt 0:05:22]} 12. Nh4 {[%emt 0:05:05]} Bh5 {[%emt 0:07:17]} 13. Qb3 {[%emt 0:04:31]} Qb6 {[%emt 0:11:43]} 14. Qxb6 {[%emt 0:03:23]} Nxb6 {[%emt 0:04:08]} 15. Nf5 {[%emt 0:01:46]} Bc7 {[%emt 0:01:00]} 16. Rac1 {[%emt 0:03:55]} Rad8 {[%emt 0:03:52]} 17. Bg5 {[%emt 0:01:47]} Bg6 {[%emt 0:11:17]} 18. Bxf6 {[%emt 0:02:13]} gxf6 {[%emt 0:00:13]} 19. Ne3 {[%emt 0:00:21]} Bb8 {[%emt 0:02:50]} 20. Nc2 {[%emt 0:02:45]} Nc4 {[%emt 0:03:01]} 21. b3 {[%emt 0:01:09]} Nd6 {[%emt 0:00:40]} 22. f3 {[%emt 0:03:01]} Kg7 {[%emt 0:07:52]} 23. e4 {[%emt 0:03:57]} dxe4 {[%emt 0:02:12]} 24. fxe4 {[%emt 0:03:35]} a6 {[%emt 0:01:46]} 25. Rcd1 {[%emt 0:02:25]} Ba7 {[%emt 0:00:43]} 26. Bf3 {[%emt 0:02:04]} Nb5 {[%emt 0:06:52]} 27. Nxb5 {[%emt 0:00:41]} axb5 {[%emt 0:00:13]} 28. Kg2 {[%emt 0:02:35]} f5 {[%emt 0:02:11]} 29. exf5 {[%emt 0:03:41]} Bxf5 {[%emt 0:00:54]} 30. Rxe8 {[%emt 0:01:03]} Rxe8 {[%emt 0:00:18]} 31. Nb4 {[%emt 0:01:01]} Rd8 {[%emt 0:01:14]} 32. d5 {[%emt 0:00:36]} c5 {[%emt 0:01:58]} 33. Nd3 {[%emt 0:01:11]} c4 {[%emt 0:01:06]} 34. bxc4 {[%emt 0:01:23]} bxc4 {[%emt 0:00:06]} 35. Nf4 {[%emt 0:00:40]} c3 {[%emt 0:05:01]} 36. Ne2 {[%emt 0:04:27]} c2 {[%emt 0:00:56]} 37. Re1 {[%emt 0:01:01]} Re8 {[%emt 0:02:37]} 38. d6 {[%emt 0:02:07]} Bb6 {[%emt 0:00:54]} 39. Rh1 {[%emt 0:05:03]} Rd8 {[%emt 0:01:02]} 40. g4 {[%emt 0:03:03]} Bd3 {[%emt 0:00:52]} 41. Nf4 {[%emt 0:33:22]} Rxd6 {[%emt 0:01:53]} 42. Rc1 {[%emt 0:00:00]} Be3 {[%emt 0:06:04]} 43. Nxd3 {[%emt 0:00:00]} Bxc1 {[%emt 0:00:49]} 44. Nxc1 {[%emt 0:00:00]} Rd1 {[%emt 0:00:23]} 45. Nb3 {[%emt 0:00:00]} Rb1 {[%emt 0:01:23]} 0-1

[Event "NOR-ch Various 2019"]
[Site "Larvik"]
[Date "2019.07.13"]
[Round "9.8"]
[White "Rynning, Rune Kleiven"]
[Black "Westrum, Kim Roger Hansen"]
[Result "0-1"]
[ECO "B01"]
[WhiteElo "1620"]
[BlackElo "1731"]
[Annotator "NA"]
[PlyCount "64"]
[EventDate "2019.07.06"]
[EventType "swiss"]
[EventCountry "NOR"]
[SourceTitle "playchess.com"]
[Source "ChessBase"]
[SourceQuality "1"]
[TimeControl "40/5400+30:1800+30"]

1. e4 {[%emt 0:00:00]} d5 {[%emt 0:00:00]} 2. exd5 {[%emt 0:00:00]} Qxd5 {[%emt 0:00:00]} 3. Nc3 {[%emt 0:00:00]} Qa5 {[%emt 0:00:12]} 4. d4 {[%emt 0:00:00]} Nf6 {[%emt 0:00:12]} 5. Nf3 {[%emt 0:00:04]} c6 {[%emt 0:00:07]} 6. Bc4 {[%emt 0:00:11]} Bf5 {[%emt 0:00:17]} 7. Bd2 {[%emt 0:00:18]} Qc7 {[%emt 0:00:11]} 8. O-O {[%emt 0:01:25]} e6 {[%emt 0:01:02]} 9. Ne5 {[%emt 0:03:57]} Bd6 {[%emt 0:02:23]} 10. Re1 {[%emt 0:05:59]} O-O {[%emt 0:12:54]} 11. Bf4 {[%emt 0:10:37]} Nd5 {[%emt 0:20:37]} 12. Bxd5 {[%emt 0:10:34]} exd5 {[%emt 0:00:21]} 13. Qd2 {[%emt 0:17:09]} Na6 {[%emt 0:16:00]} 14. Re2 {[%emt 0:04:03]} Nb4 {[%emt 0:01:34]} 15. a3 {[%emt 0:02:47]} Nxc2 {[%emt 0:12:39]} 16. Rc1 {[%emt 0:00:07]} f6 {[%emt 0:00:26]} 17. Nd3 {[%emt 0:01:51]} Nxd4 {[%emt 0:01:38]} 18. Nxd5 {[%emt 0:01:07]} Nxe2+ {[%emt 0:01:39]} 19. Qxe2 {[%emt 0:00:21]} Qd7 {[%emt 0:00:19]} 20. Bxd6 {[%emt 0:03:35]} Bxd3 {[%emt 0:15:38]} 21. Ne7+ {[%emt 0:01:05]} Kh8 {[%emt 0:00:51]} 22. Qxd3 {[%emt 0:04:16]} Rad8 {[%emt 0:00:01]} 23. Rd1 {[%emt 0:03:34]} Rfe8 {[%emt 0:00:22]} 24. Nf5 {[%emt 0:07:41]} g6 {[%emt 0:00:09]} 25. Nh6 {[%emt 0:02:36]} Kg7 {[%emt 0:02:00]} 26. h4 {[%emt 0:09:25]} Qe6 {[%emt 0:02:53]} 27. Qd2 {[%emt 0:01:53]} Re7 {[%emt 0:03:06]} 28. Qa5 {[%emt 0:08:13]} Red7 {[%emt 0:01:08]} 29. Qb4 {[%emt 0:01:11]} Rxd6 {[%emt 0:00:48]} 30. Qxb7+ {[%emt 0:00:29]} R8d7 {[%emt 0:00:20]} 31. Rxd6 {[%emt 0:00:25]} Qxd6 {[%emt 0:00:01]} 32. Qc8 {[%emt 0:00:29]} Kxh6 {[%emt 0:00:27]} 0-1

[Event "NOR-ch Various 2019"]
[Site "Larvik"]
[Date "2019.07.13"]
[Round "9.9"]
[White "Berbom, Henrik"]
[Black "Wullum, Robin"]
[Result "0-1"]
[ECO "D35"]
[WhiteElo "1506"]
[BlackElo "1452"]
[Annotator "NA"]
[PlyCount "100"]
[EventDate "2019.07.06"]
[EventType "swiss"]
[EventCountry "NOR"]
[SourceTitle "playchess.com"]
[Source "ChessBase"]
[SourceQuality "1"]
[TimeControl "40/5400+30:1800+30"]

1. d4 {[%emt 0:00:00]} Nf6 {[%emt 0:00:00]} 2. c4 {[%emt 0:00:00]} e6 {[%emt 0:00:14]} 3. Nc3 {[%emt 0:00:00]} d5 {[%emt 0:00:14]} 4. cxd5 {[%emt 0:00:00]} exd5 {[%emt 0:00:04]} 5. Bg5 {[%emt 0:00:01]} Be7 {[%emt 0:00:02]} 6. e3 {[%emt 0:00:08]} O-O {[%emt 0:01:01]} 7. Bd3 {[%emt 0:00:08]} h6 {[%emt 0:00:05]} 8. Bh4 {[%emt 0:00:05]} Re8 {[%emt 0:00:17]} 9. Nf3 {[%emt 0:01:40]} c6 {[%emt 0:01:51]} 10. Bg3 {[%emt 0:00:21]} Nbd7 {[%emt 0:01:32]} 11. h3 {[%emt 0:05:04]} a6 {[%emt 0:01:25]} 12. O-O {[%emt 0:00:27]} Bf8 {[%emt 0:03:35]} 13. Qc2 {[%emt 0:03:46]} c5 {[%emt 0:19:09]} 14. Bf5 {[%emt 0:06:38]} g6 {[%emt 0:00:00]} 15. Bxd7 {[%emt 0:02:59]} Bxd7 {[%emt 0:04:38]} 16. dxc5 {[%emt 0:11:03]} Bf5 {[%emt 0:02:03]} 17. Qb3 {[%emt 0:02:37]} Bxc5 {[%emt 0:00:00]} 18. Rfd1 {[%emt 0:01:14]} Qe7 {[%emt 0:06:38]} 19. Nxd5 {[%emt 0:10:21]} Nxd5 {[%emt 0:00:03]} 20. Qxd5 {[%emt 0:00:09]} Rad8 {[%emt 0:00:35]} 21. Qe5 {[%emt 0:02:03]} Qf8 {[%emt 0:06:30]} 22. Qc7 {[%emt 0:03:37]} Be4 {[%emt 0:16:30]} 23. Nd4 {[%emt 0:08:25]} Rc8 {[%emt 0:02:09]} 24. Qa5 {[%emt 0:00:52]} Red8 {[%emt 0:02:56]} 25. Bc7 {[%emt 0:01:25]} Rd5 {[%emt 0:08:01]} 26. Nb3 {[%emt 0:20:41]} Bb4 {[%emt 0:00:00]} 27. Qb6 {[%emt 0:00:14]} Rb5 {[%emt 0:00:00]} 28. Qd4 {[%emt 0:00:24]} Bc2 {[%emt 0:00:00]} 29. Bd6 {[%emt 0:08:09]} Bxd6 {[%emt 0:00:00]} 30. Qxd6 {[%emt 0:00:07]} Bxd1 {[%emt 0:00:00]} 31. Qxf8+ {[%emt 0:00:09]} Kxf8 {[%emt 0:00:00]} 32. Rxd1 {[%emt 0:00:17]} Rc2 {[%emt 0:00:00]} 33. Nd4 {[%emt 0:00:12]} Rbxb2 {[%emt 0:00:00]} 34. Nxc2 {[%emt 0:00:15]} Rxc2 {[%emt 0:03:49]} 35. Rb1 {[%emt 0:00:06]} b5 {[%emt 0:01:50]} 36. a4 {[%emt 0:00:27]} bxa4 {[%emt 0:00:52]} 37. Ra1 {[%emt 0:00:04]} Rc4 {[%emt 0:00:41]} 38. Kf1 {[%emt 0:00:07]} Ke7 {[%emt 0:00:00]} 39. Ke2 {[%emt 0:07:39]} Kd6 {[%emt 0:00:24]} 40. Kd3 {[%emt 0:00:04]} Kc5 {[%emt 0:01:47]} 41. g3 {[%emt 0:32:08]} Kb5 {[%emt 0:09:49]} 42. g4 {[%emt 0:02:24]} Rb4 {[%emt 0:01:53]} 43. f3 {[%emt 0:01:47]} Rb3+ {[%emt 0:00:00]} 44. Kd4 {[%emt 0:00:35]} a3 {[%emt 0:00:00]} 45. Rc1 {[%emt 0:00:52]} a2 {[%emt 0:00:00]} 46. Ra1 {[%emt 0:00:15]} Ra3 {[%emt 0:00:09]} 47. h4 {[%emt 0:01:32]} Kb4 {[%emt 0:01:29]} 48. h5 {[%emt 0:01:21]} Kb3 {[%emt 0:00:00]} 49. f4 {[%emt 0:00:43]} gxh5 {[%emt 0:00:00]} 50. gxh5 {[%emt 0:00:09]} Kb2 {[%emt 0:00:00]} 0-1

[Event "NOR-ch Various 2019"]
[Site "Larvik"]
[Date "2019.07.13"]
[Round "9.10"]
[White "Carlin, Tormod"]
[Black "Evanger, Trond"]
[Result "1/2-1/2"]
[ECO "D94"]
[WhiteElo "1426"]
[BlackElo "1571"]
[Annotator "NA"]
[PlyCount "163"]
[EventDate "2019.07.06"]
[EventType "swiss"]
[EventCountry "NOR"]
[SourceTitle "playchess.com"]
[Source "ChessBase"]
[SourceQuality "1"]
[TimeControl "40/5400+30:1800+30"]

1. d4 {[%emt 0:00:00]} Nf6 {[%emt 0:00:00]} 2. c4 {[%emt 0:00:00]} g6 {[%emt 0:00:00]} 3. Nc3 {[%emt 0:00:00]} Bg7 {[%emt 0:00:00]} 4. Nf3 {[%emt 0:00:06]} O-O {[%emt 0:00:08]} 5. e3 {[%emt 0:00:07]} d5 {[%emt 0:01:38]} 6. cxd5 {[%emt 0:01:01]} Nxd5 {[%emt 0:00:08]} 7. Bd3 {[%emt 0:00:19]} c5 {[%emt 0:02:09]} 8. Bc4 {[%emt 0:01:02]} Nxc3 {[%emt 0:06:09]} 9. bxc3 {[%emt 0:00:09]} Nc6 {[%emt 0:00:51]} 10. O-O {[%emt 0:01:02]} Qc7 {[%emt 0:01:52]} 11. Be2 {[%emt 0:01:04]} Rd8 {[%emt 0:01:21]} 12. Bb2 {[%emt 0:01:18]} Bf5 {[%emt 0:04:48]} 13. Qc1 {[%emt 0:03:18]} Rac8 {[%emt 0:01:24]} 14. Rd1 {[%emt 0:01:15]} Na5 {[%emt 0:04:08]} 15. h3 {[%emt 0:16:16]} cxd4 {[%emt 0:01:09]} 16. cxd4 {[%emt 0:01:03]} Nc4 {[%emt 0:00:30]} 17. Bd3 {[%emt 0:05:09]} Bxd3 {[%emt 0:02:25]} 18. Rxd3 {[%emt 0:00:09]} Nxb2 {[%emt 0:05:17]} 19. Qxb2 {[%emt 0:02:20]} e5 {[%emt 0:00:35]} 20. Rdd1 {[%emt 0:00:33]} exd4 {[%emt 0:00:25]} 21. Nxd4 {[%emt 0:03:32]} Rd5 {[%emt 0:08:04]} 22. Rac1 {[%emt 0:16:39]} Qd7 {[%emt 0:00:59]} 23. Rxc8+ {[%emt 0:03:22]} Qxc8 {[%emt 0:00:40]} 24. Rb1 {[%emt 0:02:45]} b6 {[%emt 0:03:45]} 25. Qa3 {[%emt 0:03:16]} Bxd4 {[%emt 0:02:01]} 26. exd4 {[%emt 0:00:17]} Qd7 {[%emt 0:00:17]} 27. Re1 {[%emt 0:02:15]} Rxd4 {[%emt 0:02:51]} 28. Re7 {[%emt 0:00:27]} Rd1+ {[%emt 0:03:35]} 29. Kh2 {[%emt 0:00:56]} Qd6+ {[%emt 0:00:15]} 30. Qxd6 {[%emt 0:00:14]} Rxd6 {[%emt 0:00:04]} 31. Rxa7 {[%emt 0:00:21]} Rd2 {[%emt 0:00:09]} 32. Kg3 {[%emt 0:01:04]} Kg7 {[%emt 0:00:14]} 33. Ra6 {[%emt 0:00:24]} Rb2 {[%emt 0:00:18]} 34. Ra3 {[%emt 0:00:13]} b5 {[%emt 0:00:45]} 35. Rb3 {[%emt 0:05:18]} Rxa2 {[%emt 0:00:07]} 36. Rxb5 {[%emt 0:00:22]} Rc2 {[%emt 0:00:37]} 37. Rb7 {[%emt 0:04:24]} Rc3+ {[%emt 0:00:29]} 38. f3 {[%emt 0:00:16]} Rc5 {[%emt 0:00:50]} 39. h4 {[%emt 0:00:37]} h5 {[%emt 0:00:06]} 40. Rb4 {[%emt 0:01:30]} Rc2 {[%emt 0:01:12]} 41. Rb7 {[%emt 0:30:11]} Rc5 {[%emt 0:30:16]} 42. Rb4 {[%emt 0:00:41]} Rc2 {[%emt 0:00:13]} 43. Kh3 {[%emt 0:01:01]} Rc5 {[%emt 0:01:23]} 44. g4 {[%emt 0:00:20]} hxg4+ {[%emt 0:00:44]} 45. fxg4 {[%emt 0:00:06]} Rc3+ {[%emt 0:01:09]} 46. Kg2 {[%emt 0:00:10]} Rd3 {[%emt 0:00:47]} 47. Kf2 {[%emt 0:00:52]} Rh3 {[%emt 0:00:23]} 48. g5 {[%emt 0:00:14]} Rc3 {[%emt 0:00:31]} 49. Ke2 {[%emt 0:00:12]} Rh3 {[%emt 0:00:08]} 50. Kf2 {[%emt 0:00:20]} Rc3 {[%emt 0:00:10]} 51. Kg2 {[%emt 0:00:06]} Rd3 {[%emt 0:00:06]} 52. Rf4 {[%emt 0:00:14]} Rb3 {[%emt 0:00:30]} 53. Rf1 {[%emt 0:00:39]} Rc3 {[%emt 0:00:08]} 54. Rh1 {[%emt 0:00:09]} Ra3 {[%emt 0:00:33]} 55. Rf1 {[%emt 0:01:13]} Rc3 {[%emt 0:02:28]} 56. Rf6 {[%emt 0:01:52]} Ra3 {[%emt 0:00:36]} 57. Rf4 {[%emt 0:01:15]} Rc3 {[%emt 0:00:26]} 58. Rf3 {[%emt 0:06:00]} Rc4 {[%emt 0:00:57]} 59. Kg3 {[%emt 0:00:17]} Rc5 {[%emt 0:00:56]} 60. Kg4 {[%emt 0:00:12]} Rc4+ {[%emt 0:00:56]} 61. Rf4 {[%emt 0:00:14]} Rc1 {[%emt 0:02:41]} 62. Kg3 {[%emt 0:00:26]} Rc3+ {[%emt 0:00:13]} 63. Rf3 {[%emt 0:00:10]} Rc5 {[%emt 0:00:15]} 64. Kg4 {[%emt 0:00:08]} Rc4+ {[%emt 0:00:07]} 65. Kg3 {[%emt 0:00:09]} Rc5 {[%emt 0:00:07]} 66. Ra3 {[%emt 0:00:16]} Rb5 {[%emt 0:00:19]} 67. Ra4 {[%emt 0:00:18]} Rb1 {[%emt 0:01:59]} 68. Kf4 {[%emt 0:00:10]} Re1 {[%emt 0:00:22]} 69. Re4 {[%emt 0:00:37]} Rxe4+ {[%emt 0:00:32]} 70. Kxe4 {[%emt 0:00:06]} f5+ {[%emt 0:00:05]} 71. gxf6+ {[%emt 0:00:27]} Kxf6 {[%emt 0:00:08]} 72. Kf4 {[%emt 0:00:12]} Kf7 {[%emt 0:00:15]} 73. Kg5 {[%emt 0:00:18]} Kg7 {[%emt 0:00:10]} 74. Kf4 {[%emt 0:00:35]} Kh6 {[%emt 0:00:11]} 75. Kg4 {[%emt 0:00:11]} Kh7 {[%emt 0:00:13]} 76. Kg5 {[%emt 0:00:16]} Kg7 {[%emt 0:00:06]} 77. Kf4 {[%emt 0:00:08]} Kf6 {[%emt 0:00:08]} 78. Kg4 {[%emt 0:00:13]} Kf7 {[%emt 0:00:09]} 79. Kg5 {[%emt 0:00:05]} Kg7 {[%emt 0:00:18]} 80. Kf4 {[%emt 0:00:14]} Kf6 {[%emt 0:00:07]} 81. Kg4 {[%emt 0:00:05]} Kf7 {[%emt 0:00:07]} 82. Kg5 {[%emt 0:00:09]} 1/2-1/2

[Event "NOR-ch Various 2019"]
[Site "Larvik"]
[Date "2019.07.13"]
[Round "9.11"]
[White "Tran, Tien Quoc"]
[Black "Nordlov, Jorgen"]
[Result "1-0"]
[ECO "B01"]
[WhiteElo "1266"]
[BlackElo "1263"]
[Annotator "NA"]
[PlyCount "89"]
[EventDate "2019.07.06"]
[EventType "swiss"]
[EventCountry "NOR"]
[SourceTitle "playchess.com"]
[Source "ChessBase"]
[SourceQuality "1"]
[TimeControl "40/5400+30:1800+30"]

1. e4 {[%emt 0:01:34]} d5 {[%emt 0:00:00]} 2. exd5 {[%emt 0:00:10]} Qxd5 {[%emt 0:00:00]} 3. Nc3 {[%emt 0:00:05]} Qd6 {[%emt 0:00:00]} 4. d4 {[%emt 0:02:40]} c6 {[%emt 0:00:00]} 5. Nf3 {[%emt 0:00:51]} g6 {[%emt 0:00:57]} 6. Bd3 {[%emt 0:05:11]} Bg4 {[%emt 0:00:53]} 7. Ne4 {[%emt 0:00:46]} Qc7 {[%emt 0:02:49]} 8. Qe2 {[%emt 0:03:37]} Bg7 {[%emt 0:01:54]} 9. c3 {[%emt 0:01:22]} Nd7 {[%emt 0:03:39]} 10. h3 {[%emt 0:05:33]} Bxf3 {[%emt 0:01:56]} 11. Qxf3 {[%emt 0:00:14]} Qa5 {[%emt 0:02:23]} 12. O-O {[%emt 0:10:20]} Rd8 {[%emt 0:03:39]} 13. Ng5 {[%emt 0:13:51]} Ngf6 {[%emt 0:03:37]} 14. Re1 {[%emt 0:10:53]} h6 {[%emt 0:03:11]} 15. Ne4 {[%emt 0:01:34]} O-O {[%emt 0:03:00]} 16. Nxf6+ {[%emt 0:02:13]} exf6 {[%emt 0:00:59]} 17. Bc4 {[%emt 0:04:44]} Rde8 {[%emt 0:09:00]} 18. Bd2 {[%emt 0:03:07]} Nb6 {[%emt 0:02:08]} 19. b4 {[%emt 0:04:31]} Rxe1+ {[%emt 0:01:52]} 20. Rxe1 {[%emt 0:00:49]} Qa4 {[%emt 0:05:41]} 21. Bb3 {[%emt 0:01:22]} Qb5 {[%emt 0:00:44]} 22. Qe2 {[%emt 0:02:30]} Qxe2 {[%emt 0:02:52]} 23. Rxe2 {[%emt 0:00:30]} g5 {[%emt 0:00:53]} 24. Re7 {[%emt 0:00:48]} Nd5 {[%emt 0:02:04]} 25. Rxb7 {[%emt 0:01:00]} Re8 {[%emt 0:00:37]} 26. Kf1 {[%emt 0:00:55]} g4 {[%emt 0:02:43]} 27. hxg4 {[%emt 0:01:16]} Re4 {[%emt 0:00:19]} 28. f3 {[%emt 0:01:59]} Re8 {[%emt 0:06:27]} 29. Rxa7 {[%emt 0:01:26]} Ne3+ {[%emt 0:01:38]} 30. Kf2 {[%emt 0:00:08]} Nd5 {[%emt 0:02:14]} 31. a4 {[%emt 0:00:54]} f5 {[%emt 0:01:18]} 32. gxf5 {[%emt 0:00:51]} Bf6 {[%emt 0:00:16]} 33. Bxd5 {[%emt 0:00:32]} cxd5 {[%emt 0:01:01]} 34. Bxh6 {[%emt 0:00:15]} Bh4+ {[%emt 0:00:36]} 35. g3 {[%emt 0:00:11]} Be7 {[%emt 0:00:25]} 36. Rd7 {[%emt 0:00:39]} f6 {[%emt 0:01:02]} 37. Rxd5 {[%emt 0:00:20]} Kh7 {[%emt 0:00:33]} 38. Bf4 {[%emt 0:00:17]} Kg8 {[%emt 0:00:43]} 39. b5 {[%emt 0:00:34]} Ra8 {[%emt 0:02:33]} 40. b6 {[%emt 0:00:41]} Rxa4 {[%emt 0:00:36]} 41. b7 {[%emt 0:30:51]} Ra2+ {[%emt 0:30:07]} 42. Ke3 {[%emt 0:00:07]} Rb2 {[%emt 0:00:11]} 43. b8=Q+ {[%emt 0:00:10]} Rxb8 {[%emt 0:00:10]} 44. Bxb8 {[%emt 0:00:08]} Kf7 {[%emt 0:01:08]} 45. c4 {[%emt 0:00:56]} 1-0